fUSD/lending_fUSD_20250306
["ID","MTS","AMOUNT","RATE_DAILY","PERIOD"]
[355542595,1741249843607,-482.87095963,0.00011555,2]
[355542596,1741249843618,-604.39904037,0.00011555,2]
[355542597,1741249843627,-301.0710169,0.00011828,2]
[355542599,1741249843636,-3715.0,0.00011828,2]
[355542601,1741249843645,-778.68,0.00011828,2]
[355542603,1741249843654,-500.0,0.00011828,2]
[355542605,1741249843663,-1193.62,0.00011828,2]
[355542607,1741249843672,-500.0,0.00011828,2]
[355542609,1741249843681,-727.1,0.00011828,2]
[355542611,1741249843690,-1451.58,0.00011828,2]
[355542613,1741249843699,-500.0,0.00011828,2]
[355542615,1741249843708,-500.0,0.00011828,2]
[355542617,1741249843716,-500.0,0.00011828,2]
[355542619,1741249843726,-796.37,0.00011828,2]
[355542620,1741249843736,-500.0,0.00011828,2]
[355542621,1741249843745,-263.24460847,0.00011828,2]
[355542622,1741249843755,-500.0,0.00011828,2]
[355542623,1741249843765,-500.0,0.00011828,2]
[355542624,1741249843774,-500.0,0.00011828,2]
[355542625,1741249843783,-1702.95,0.00011828,2]
[355542626,1741249843792,-500.92,0.00011828,2]
[355542627,1741249843802,-739.15,0.00011828,2]
[355542628,1741249843811,-1569.51,0.00011828,2]
[355542629,1741249843821,-931.26,0.00011828,2]
[355542630,1741249843830,-992.47,0.00011828,2]
[355542631,1741249843839,-960.46,0.00011828,2]
[355542632,1741249843848,-500.0,0.00011828,2]
[355542633,1741249843857,-679.81,0.00011828,2]
[355542634,1741249843867,-1781.41,0.00011828,2]
[355542635,1741249844032,-1738.49,0.00011828,2]
[355542636,1741249844079,-620.00567694,0.00011828,2]
[355542637,1741249844089,-500.0,0.00011828,2]
[355542638,1741249844098,-2451.55,0.00011828,2]
[355542639,1741249844107,-680.74,0.00011828,2]
[355542640,1741249844117,-500.0,0.00011828,2]
[355542641,1741249844126,-1395.74,0.00011828,2]
[355542642,1741249844135,-1058.04,0.00011828,2]
[355542643,1741249844144,-1618.78,0.00011828,2]
[355542644,1741249844153,-1988.49,0.00011828,2]
[355542645,1741249844163,-500.0,0.00011828,2]
[355542646,1741249844173,-758.0,0.00011828,2]
[355542647,1741249844183,-500.0,0.00011828,2]
[355542648,1741249844193,-500.0,0.00011828,2]
[355542649,1741249844202,-3588.97,0.00011828,2]
[355542650,1741249844212,-500.0,0.00011828,2]
[355542651,1741249844221,-500.0,0.00011828,2]
[355542652,1741249844231,-500.0,0.00011828,2]
[355542653,1741249844240,-1477.72,0.00011828,2]
[355542654,1741249844249,-500.0,0.00011828,2]
[355542655,1741249844258,-500.0,0.00011828,2]
[355542656,1741249844267,-788.67,0.00011828,2]
[355542657,1741249844277,-500.0,0.00011828,2]
[355542658,1741249844286,-500.0,0.00011828,2]
[355542659,1741249844295,-500.0,0.00011828,2]
[355542660,1741249844305,-1415.39,0.00011828,2]
[355542661,1741249844314,-500.0,0.00011828,2]
[355542662,1741249844325,-500.0,0.00011828,2]
[355542663,1741249844334,-1446.21,0.00011828,2]
[355542664,1741249844343,-1427.79,0.00011828,2]
[355542665,1741249844353,-1037.76,0.00011828,2]
[355542666,1741249844363,-472.85,0.00011828,2]
[355542667,1741249844372,-1588.77,0.00011828,2]
[355542668,1741249844381,-7760.16,0.00011828,2]
[355542669,1741249844391,-1303.99,0.00011828,2]
[355542670,1741249844400,-500.0,0.00011828,2]
[355542671,1741249844410,-67.87270784,0.00011828,2]
[355542672,1741249844421,-447.3073918,0.00011828,2]
[355542673,1741249844431,-395.83687639,0.00011828,2]
[355542676,1741249846257,-70.96312361,0.00011828,2]
[355542677,1741249846266,-500.0,0.00011828,2]
[355542678,1741249846275,-946.86878719,0.00011828,2]
[355542679,1741249846385,-1996.95121281,0.00011828,2]
[355542680,1741249846394,-673.43,0.00011828,2]
[355542681,1741249846404,-686.4,0.00011828,2]
[355542682,1741249846413,-1255.2,0.00011828,2]
[355542683,1741249846422,-278.95,0.00011828,2]
[355542684,1741249846432,-632.87,0.00011828,2]
[355542685,1741249846442,-500.0,0.00011828,2]
[355542686,1741249846451,-912.13,0.00011828,2]
[355542687,1741249846460,-592.92,0.00011828,2]
[355542688,1741249846470,-523.03,0.00011828,2]
[355542689,1741249846479,-995.37,0.00011828,2]
[355542690,1741249846488,-851.97,0.00011828,2]
[355542691,1741249846500,-597.05,0.00011828,2]
[355542692,1741249846510,-371.53623506,0.00011828,2]
[355542693,1741249846520,-732.25,0.00011828,2]
[355542694,1741249846530,-500.0,0.00011828,2]
[355542695,1741249846540,-500.0,0.00011828,2]
[355542696,1741249846549,-549.02,0.00011828,2]
[355542697,1741249846559,-500.0,0.00011828,2]
[355542698,1741249846569,-500.0,0.00011828,2]
[355542699,1741249846579,-500.0,0.00011829,2]
[355542700,1741249846589,-500.0,0.00011829,2]
[355542701,1741249846597,-500.0,0.00011829,2]
[355542702,1741249846606,-500.0,0.00011829,2]
[355542703,1741249846615,-500.0,0.00011829,2]
[355542704,1741249846624,-500.0,0.00011829,2]
[355542705,1741249846632,-500.0,0.00011829,2]
[355542706,1741249846641,-500.0,0.00011829,2]
[355542707,1741249846650,-512.81483976,0.00011829,2]
[355542708,1741249846659,-500.0,0.00011829,2]
[355542709,1741249846668,-500.0,0.00011829,2]
[355542710,1741249846677,-500.0,0.00011829,2]
[355542711,1741249846686,-500.0,0.00011829,2]
[355542712,1741249846695,-500.0,0.00011829,2]
[355542713,1741249846704,-500.0,0.00011829,2]
[355542714,1741249846713,-500.0,0.00011829,2]
[355542715,1741249846721,-500.0,0.00011829,2]
[355542716,1741249846731,-500.0,0.00011829,2]
[355542717,1741249846739,-500.0,0.00011829,2]
[355542718,1741249846748,-500.0,0.00011829,2]
[355542719,1741249846757,-500.0,0.00011829,2]
[355542720,1741249846766,-500.0,0.00011829,2]
[355542721,1741249846775,-500.0,0.00011829,2]
[355542722,1741249846783,-500.0,0.00011829,2]
[355542723,1741249846793,-500.0,0.00011829,2]
[355542724,1741249846802,-500.0,0.00011829,2]
[355542725,1741249846811,-672.6,0.00011829,2]
[355542726,1741249846821,-500.0,0.00011829,2]
[355542727,1741249846830,-500.0,0.00011829,2]
[355542728,1741249846840,-500.0,0.00011829,2]
[355542730,1741249846849,-500.0,0.00011829,2]
[355542731,1741249846859,-500.0,0.00011829,2]
[355542732,1741249846868,-500.0,0.00011829,2]
[355542733,1741249846877,-500.0,0.00011829,2]
[355542734,1741249846886,-500.0,0.00011829,2]
[355542735,1741249846895,-500.0,0.00011829,2]
[355542736,1741249846904,-667.79,0.00011829,2]
[355542737,1741249846913,-500.0,0.00011829,2]
[355542738,1741249846923,-500.0,0.00011829,2]
[355542739,1741249846932,-820.79,0.00011829,2]
[355542740,1741249846941,-620.42,0.00011829,2]
[355542741,1741249846951,-500.0,0.00011829,2]
[355542742,1741249846960,-541.47,0.00011829,2]
[355542743,1741249846970,-658.54,0.00011829,2]
[355542744,1741249846979,-500.0,0.00011829,2]
[355542745,1741249846988,-674.14,0.00011829,2]
[355542746,1741249846998,-500.0,0.00011829,2]
[355542747,1741249847007,-500.0,0.00011829,2]
[355542748,1741249847016,-500.0,0.00011829,2]
[355542749,1741249847025,-500.0,0.00011829,2]
[355542750,1741249847034,-500.0,0.00011829,2]
[355542751,1741249847043,-632.9,0.00011829,2]
[355542752,1741249847052,-1036.3,0.00011829,2]
[355542753,1741249847062,-500.0,0.00011829,2]
[355542754,1741249847073,-500.0,0.00011829,2]
[355542755,1741249847082,-500.0,0.00011829,2]
[355542756,1741249847091,-1699.73,0.00011829,2]
[355542757,1741249847101,-901.89,0.00011829,2]
[355542758,1741249847110,-974.69,0.00011829,2]
[355542759,1741249847119,-843.32,0.00011829,2]
[355542760,1741249847128,-755.33,0.00011829,2]
[355542761,1741249847137,-1905.12,0.00011829,2]
[355542762,1741249847147,-1241.68,0.00011829,2]
[355542763,1741249847157,-500.0,0.00011829,2]
[355542764,1741249847166,-5546.61,0.00011829,2]
[355542765,1741249847177,-3175.18,0.00011829,2]
[355542766,1741249847187,-500.0,0.00011829,2]
[355542767,1741249847196,-500.0,0.00011829,2]
[355542768,1741249847206,-500.0,0.00011829,2]
[355542770,1741249847215,-946.82,0.00011829,2]
[355542771,1741249847225,-500.0,0.00011829,2]
[355542772,1741249847234,-3201.43,0.00011829,2]
[355542773,1741249847244,-500.0,0.00011829,2]
[355542774,1741249847253,-500.0,0.00011829,2]
[355542775,1741249847263,-1573.39,0.00011829,2]
[355542776,1741249847272,-1230.11,0.00011829,2]
[355542777,1741249847282,-9616.77,0.00011829,2]
[355542778,1741249847291,-500.0,0.00011829,2]
[355542779,1741249847302,-2060.61,0.00011829,2]
[355542780,1741249847312,-500.0,0.00011829,2]
[355542781,1741249847327,-1483.39,0.00011829,2]
[355542782,1741249847337,-500.0,0.00011829,2]
[355542783,1741249847347,-1258.59,0.00011829,2]
[355542784,1741249847357,-1070.01,0.00011829,2]
[355542785,1741249847367,-500.0,0.00011829,2]
[355542786,1741249847376,-500.0,0.00011829,2]
[355542787,1741249847386,-1375.64,0.00011829,2]
[355542788,1741249847396,-2514.78,0.00011829,2]
[355542789,1741249847406,-500.0,0.00011829,2]
[355542790,1741249847416,-500.0,0.00011829,2]
[355542791,1741249847426,-500.0,0.00011829,2]
[355542792,1741249847436,-1747.78,0.00011829,2]
[355542793,1741249847445,-1000.0,0.00011829,2]
[355542794,1741249847455,-2286.04,0.00011829,2]
[355542795,1741249847464,-4052.53,0.00011829,2]
[355542796,1741249847474,-1103.82,0.00011829,2]
[355542797,1741249847483,-209.45714899,0.00011829,2]
[355542798,1741249847494,-1111.89,0.00011829,2]
[355542799,1741249847506,-969.88,0.00011829,2]
[355542800,1741249847515,-500.0,0.00011829,2]
[355542801,1741249847524,-637.97,0.00011829,2]
[355542802,1741249847534,-966.95,0.00011829,2]
[355542803,1741249847544,-546.4,0.00011829,2]
[355542804,1741249847553,-578.76,0.00011829,2]
[355542805,1741249847563,-500.0,0.00011829,2]
[355542806,1741249847577,-500.0,0.00011829,2]
[355542807,1741249847588,-715.24,0.00011829,2]
[355542808,1741249847600,-1262.27,0.00011829,2]
[355542809,1741249847611,-500.0,0.00011829,2]
[355542810,1741249847621,-500.0,0.00011829,2]
[355542811,1741249847631,-1292.51,0.00011829,2]
[355542812,1741249847641,-1146.17,0.00011829,2]
[355542813,1741249847652,-500.0,0.00011829,2]
[355542814,1741249847663,-500.0,0.00011829,2]
[355542815,1741249847672,-3203.54,0.00011829,2]
[355542816,1741249847683,-1369.04,0.00011829,2]
[355542817,1741249847693,-1178.48,0.00011829,2]
[355542818,1741249847702,-1087.27,0.00011829,2]
[355542819,1741249847713,-500.0,0.0001183,2]
[355542820,1741249847722,-500.0,0.0001183,2]
[355542821,1741249847731,-151.14760421,0.00011873,2]
[355542822,1741249847742,-843.32,0.00011899,2]
[355542823,1741249847751,-2061.0,0.000119,2]
[355542824,1741249847761,-143828.60069719,0.000119,2]
[355542825,1741249847785,-4348.48764898,0.000119,2]
[355542826,1741249847944,-638.24999966,0.000119,2]
[355542827,1741249847962,-4613.6399,0.000119,2]
[355542828,1741249847973,-2830.70601068,0.000119,2]
[355542829,1741249847983,-563.2364726,0.000119,2]
[355542830,1741249847999,-468.68885309,0.000119,2]
[355542832,1741249890241,500.0,9.068e-05,2]
[355542833,1741249918936,500.0,9.068e-05,2]
[355542834,1741249950333,500.0,0.00010164,2]
[355542837,1741250037371,153.57360033,0.0001,2]
[355542838,1741250108843,156.0,0.0001,3]
[355542839,1741250541490,-5100.0,0.000129,17]
[355542840,1741250562774,864.98,8.913e-05,2]
[355542842,1741250574101,-595.59401388,0.00012,7]
[355542843,1741250753066,250.0,0.00010791,2]
[355542845,1741251032229,-1000.0,0.00010945,2]
[355542846,1741251032240,-150.0,0.00010951,2]
[355542847,1741251032251,-550.0,0.00010957,2]
[355542848,1741251032260,-398.6035,0.00010994,2]
[355542849,1741251032335,-15.4265,0.00010994,2]
[355542850,1741251032346,-550.0,0.00011,2]
[355542851,1741251032356,-343.56,0.00011001,2]
[355542852,1741251032366,-166.13,0.00011111,2]
[355542853,1741251032375,-864.98,0.00011177,2]
[355542854,1741251032385,-150.0,0.00011425,2]
[355542855,1741251032395,-841.80900667,0.00011454,2]
[355542856,1741251032404,-299.99,0.00011454,2]
[355542857,1741251032414,-500.0,0.00011534,2]
[355542858,1741251032423,-150.0,0.00011552,2]
[355542859,1741251032433,-14118.09480648,0.00011553,2]
[355542860,1741251032445,-409.74915971,0.00011553,2]
[355542861,1741251032562,-472.15603381,0.00011553,2]
[355542862,1741251032573,-500.0,0.00011554,2]
[355542863,1741251032583,-520.6621418,0.00011554,2]
[355542864,1741251032593,-500.0,0.00011554,2]
[355542865,1741251032603,-500.0,0.00011554,2]
[355542866,1741251032613,-500.0,0.00011554,2]
[355542867,1741251032623,-500.0,0.00011554,2]
[355542868,1741251032633,-500.0,0.00011554,2]
[355542869,1741251032644,-500.0,0.00011554,2]
[355542870,1741251032653,-525.54,0.00011554,2]
[355542871,1741251032663,-558.31,0.00011554,2]
[355542872,1741251032673,-500.0,0.00011554,2]
[355542873,1741251032683,-500.0,0.00011554,2]
[355542874,1741251032693,-500.0,0.00011554,2]
[355542875,1741251032703,-428.61,0.00011554,2]
[355542876,1741251032713,-500.0,0.00011554,2]
[355542877,1741251032723,-500.0,0.00011554,2]
[355542878,1741251032733,-500.0,0.00011554,2]
[355542879,1741251032742,-500.0,0.00011554,2]
[355542880,1741251032752,-500.0,0.00011554,2]
[355542881,1741251032763,-500.0,0.00011554,2]
[355542882,1741251032773,-500.0,0.00011554,2]
[355542883,1741251032784,-551.68,0.00011554,2]
[355542884,1741251032794,-500.0,0.00011554,2]
[355542885,1741251032804,-500.0,0.00011554,2]
[355542886,1741251032814,-500.0,0.00011554,2]
[355542887,1741251032824,-500.0,0.00011554,2]
[355542888,1741251032834,-500.0,0.00011554,2]
[355542889,1741251032844,-500.0,0.00011554,2]
[355542890,1741251032854,-500.0,0.00011554,2]
[355542891,1741251032865,-500.0,0.00011554,2]
[355542892,1741251032874,-500.0,0.00011554,2]
[355542893,1741251032888,-500.0,0.00011554,2]
[355542894,1741251032898,-500.0,0.00011554,2]
[355542895,1741251032907,-500.0,0.00011554,2]
[355542896,1741251032918,-500.0,0.00011554,2]
[355542897,1741251032929,-500.0,0.00011554,2]
[355542898,1741251032939,-500.0,0.00011554,2]
[355542899,1741251032948,-350.0,0.00011554,2]
[355542900,1741251032958,-500.0,0.00011554,2]
[355542901,1741251032968,-500.0,0.00011554,2]
[355542902,1741251032980,-500.0,0.00011554,2]
[355542903,1741251032990,-500.0,0.00011554,2]
[355542904,1741251033000,-500.0,0.00011554,2]
[355542905,1741251033011,-500.0,0.00011554,2]
[355542907,1741251033020,-577.5,0.00011554,2]
[355542908,1741251033030,-319.19,0.00011554,2]
[355542910,1741251033040,-500.0,0.00011554,2]
[355542912,1741251033050,-500.0,0.00011554,2]
[355542914,1741251033060,-500.0,0.00011554,2]
[355542916,1741251033070,-581.28,0.00011554,2]
[355542918,1741251033083,-500.0,0.00011554,2]
[355542920,1741251033094,-689.81,0.00011554,2]
[355542922,1741251033105,-500.0,0.00011554,2]
[355542924,1741251033115,-500.0,0.00011554,2]
[355542926,1741251033126,-500.0,0.00011554,2]
[355542928,1741251033136,-500.0,0.00011554,2]
[355542930,1741251033147,-500.0,0.00011554,2]
[355542932,1741251033157,-500.0,0.00011554,2]
[355542933,1741251033167,-647.4,0.00011554,2]
[355542934,1741251033177,-500.0,0.00011554,2]
[355542935,1741251033186,-500.0,0.00011554,2]
[355542936,1741251033196,-500.0,0.00011554,2]
[355542937,1741251033206,-155.47,0.00011554,2]
[355542938,1741251033216,-500.0,0.00011554,2]
[355542939,1741251033225,-177.34,0.00011554,2]
[355542940,1741251033235,-504.57,0.00011554,2]
[355542941,1741251033244,-500.0,0.00011554,2]
[355542942,1741251033254,-500.0,0.00011554,2]
[355542943,1741251033263,-500.0,0.00011554,2]
[355542944,1741251033272,-500.0,0.00011554,2]
[355542945,1741251033281,-500.0,0.00011554,2]
[355542946,1741251033291,-500.0,0.00011554,2]
[355542947,1741251033300,-472.65,0.00011554,2]
[355542948,1741251033310,-500.0,0.00011554,2]
[355542949,1741251033319,-500.0,0.00011554,2]
[355542950,1741251033330,-280.67908711,0.00011554,2]
[355542951,1741251033339,-500.0,0.00011554,2]
[355542952,1741251033349,-500.0,0.00011554,2]
[355542953,1741251033358,-500.0,0.00011554,2]
[355542954,1741251033368,-442.3,0.00011554,2]
[355542956,1741251033378,-500.0,0.00011554,2]
[355542958,1741251033387,-500.0,0.00011554,2]
[355542960,1741251033398,-500.0,0.00011554,2]
[355542962,1741251033407,-663.23,0.00011554,2]
[355542964,1741251033416,-177.69316145,0.00011554,2]
[355542965,1741251033425,-500.0,0.00011554,2]
[355542967,1741251033434,-500.0,0.00011554,2]
[355542969,1741251033443,-500.0,0.00011554,2]
[355542971,1741251033453,-500.0,0.00011554,2]
[355542973,1741251033462,-500.0,0.00011554,2]
[355542975,1741251033471,-500.0,0.00011554,2]
[355542977,1741251033481,-500.0,0.00011554,2]
[355542979,1741251033491,-500.0,0.00011554,2]
[355542981,1741251033500,-500.0,0.00011554,2]
[355542983,1741251033510,-500.0,0.00011554,2]
[355542985,1741251033519,-500.0,0.00011554,2]
[355542987,1741251033529,-500.0,0.00011554,2]
[355542989,1741251033537,-500.0,0.00011554,2]
[355542991,1741251033547,-500.0,0.00011554,2]
[355542993,1741251033556,-500.0,0.00011554,2]
[355542995,1741251033565,-500.0,0.00011554,2]
[355542997,1741251033574,-568.72,0.00011554,2]
[355542998,1741251033584,-500.0,0.00011554,2]
[355543000,1741251033593,-500.0,0.00011554,2]
[355543002,1741251033603,-500.0,0.00011554,2]
[355543004,1741251033612,-500.0,0.00011554,2]
[355543005,1741251033621,-500.0,0.00011554,2]
[355543006,1741251033631,-500.0,0.00011554,2]
[355543007,1741251033639,-500.0,0.00011554,2]
[355543008,1741251033649,-500.0,0.00011554,2]
[355543009,1741251033658,-500.0,0.00011554,2]
[355543010,1741251033668,-500.0,0.00011554,2]
[355543011,1741251033677,-500.0,0.00011554,2]
[355543012,1741251033686,-500.0,0.00011554,2]
[355543013,1741251033695,-500.0,0.00011554,2]
[355543014,1741251033704,-500.0,0.00011554,2]
[355543015,1741251033713,-500.0,0.00011554,2]
[355543016,1741251033723,-561.5,0.00011554,2]
[355543017,1741251033732,-500.0,0.00011554,2]
[355543018,1741251033741,-500.0,0.00011554,2]
[355543019,1741251033750,-460.56370446,0.00011554,2]
[355543020,1741251033759,-121.12711743,0.00011554,2]
[355543021,1741251033773,-378.87288257,0.00011554,2]
[355543022,1741251033783,-500.0,0.00011554,2]
[355543023,1741251033793,-500.0,0.00011554,2]
[355543024,1741251033802,-500.0,0.00011554,2]
[355543025,1741251033811,-500.0,0.00011554,2]
[355543026,1741251033820,-500.0,0.00011554,2]
[355543027,1741251033831,-500.0,0.00011554,2]
[355543028,1741251033840,-500.0,0.00011554,2]
[355543029,1741251033850,-500.0,0.00011554,2]
[355543030,1741251033859,-500.0,0.00011554,2]
[355543031,1741251033869,-500.0,0.00011554,2]
[355543032,1741251033878,-500.0,0.00011554,2]
[355543033,1741251033893,-500.0,0.00011554,2]
[355543034,1741251033902,-500.87,0.00011554,2]
[355543035,1741251033911,-500.0,0.00011554,2]
[355543036,1741251033923,-500.0,0.00011554,2]
[355543037,1741251033932,-500.0,0.00011554,2]
[355543038,1741251033942,-444.99,0.000116,2]
[355543039,1741251033951,-1428.0,0.000116,2]
[355543040,1741251033961,-841.80900659,0.00011615,2]
[355543041,1741251033972,-174.90607957,0.00011728,2]
[355543042,1741251033982,-1143.56164622,0.0001176,2]
[355543043,1741251033991,-841.80900659,0.00011775,2]
[355543044,1741251034001,-811.24275,0.0001178,2]
[355543045,1741251034010,-500.0,0.00011798,2]
[355543046,1741251034019,-500.0,0.00011798,2]
[355543047,1741251034028,-500.0,0.00011798,2]
[355543048,1741251034036,-522.61660538,0.00011798,2]
[355543049,1741251034046,-1255.54,0.00011798,2]
[355543050,1741251034056,-759.81,0.00011798,2]
[355543051,1741251034066,-500.0,0.00011798,2]
[355543052,1741251034077,-2057.05,0.00011798,2]
[355543053,1741251034087,-822.14,0.00011798,2]
[355543054,1741251034098,-1730.494667,0.00011798,2]
[355543055,1741251034108,-1819.34,0.00011798,2]
[355543056,1741251034119,-1700.46329428,0.00011798,2]
[355543057,1741251038186,-1956.62670572,0.00011798,2]
[355543058,1741251038196,-2939.964597,0.00011798,2]
[355543059,1741251038210,-1394.67,0.00011798,2]
[355543060,1741251038222,-953.22136333,0.00011798,2]
[355543061,1741251038234,-373.59863667,0.00011798,2]
[355543062,1741251038243,-666.51,0.00011798,2]
[355543063,1741251038253,-548.01678963,0.00011798,2]
[355543064,1741251038262,-730.0,0.00011798,2]
[355543065,1741251038272,-1815.7899657,0.00011798,2]
[355543066,1741251038284,-254.71710617,0.00011798,2]
[355543092,1741251040654,-168.32,0.0001144,2]
[355543093,1741251040663,-475.08292813,0.00011798,2]
[355543094,1741251040673,-1235.82,0.00011798,2]
[355543095,1741251040683,-909.77,0.00011798,2]
[355543096,1741251040692,-1122.71,0.00011798,2]
[355543097,1741251040702,-154.94,0.00011798,2]
[355543098,1741251040712,-113.03255985,0.00011798,2]
[355543135,1741251043685,-386.96744015,0.00011798,2]
[355543136,1741251043695,-1662.98,0.00011798,2]
[355543137,1741251043704,-853.66,0.00011798,2]
[355543139,1741251043713,-1279.43,0.00011798,2]
[355543141,1741251043723,-500.0,0.00011798,2]
[355543143,1741251043732,-623.16,0.00011798,2]
[355543144,1741251043742,-1822.78,0.00011798,2]
[355543145,1741251043751,-500.0,0.00011798,2]
[355543146,1741251043761,-2362.56995431,0.00011798,2]
[355543148,1741251043773,-927.31004569,0.00011798,2]
[355543150,1741251043782,-880.42,0.00011798,2]
[355543151,1741251043791,-1228.60820107,0.00011798,2]
[355543154,1741251043823,-309.73179893,0.00011798,2]
[355543155,1741251043832,-1288.57760219,0.00011798,2]
[355543156,1741251043844,-91.71239781,0.00011798,2]
[355543158,1741251043854,-439.88602719,0.00011798,2]
[355543161,1741251046218,-60.11397281,0.00011798,2]
[355543162,1741251046228,-1593.62,0.00011798,2]
[355543163,1741251046238,-500.0,0.00011798,2]
[355543164,1741251046247,-698.81811997,0.00011798,2]
[355543170,1741251140715,500.0,0.00010164,2]
[355543171,1741251499550,165.6,0.0001083,2]
[355543172,1741251534557,500.0,0.00010164,2]
[355543173,1741251546523,500.0,9.068e-05,2]
[355543174,1741251549750,200.0,0.00010794,2]
[355543175,1741251556560,500.0,9.068e-05,2]
[355543176,1741251694291,778.48,8.875e-05,2]
[355543177,1741251902766,163.0,0.00010164,30]
[355543178,1741252091314,166.13,0.00010654,2]
[355543197,1741252174172,210.60772778,0.00010694,2]
[355543208,1741252232470,-224.34227222,0.00010694,2]
[355543209,1741252232480,-150.0,0.00010847,2]
[355543210,1741252232490,-550.0,0.00011,2]
[355543211,1741252232500,-581.27,0.00011018,2]
[355543212,1741252232509,-550.0,0.00011019,2]
[355543213,1741252232519,-4291.24717151,0.0001102,2]
[355543214,1741252232529,-1000.0,0.00011029,2]
[355543215,1741252232539,-550.0,0.00011048,2]
[355543216,1741252232548,-170.35,0.00011059,2]
[355543217,1741252232558,-165.6,0.00011118,2]
[355543218,1741252232567,-150.99,0.00011118,2]
[355543219,1741252232576,-778.48,0.00011139,2]
[355543220,1741252232587,-299.99,0.00011139,2]
[355543221,1741252232597,-826.21,0.00011139,2]
[355543222,1741252232606,-60139.22029998,0.000114,2]
[355543223,1741252232622,-10215.62355861,0.000114,2]
[355543224,1741252232634,-129645.15614141,0.000114,2]
[355543225,1741252232643,-165.6,0.00011407,2]
[355543226,1741252232652,-500.0,0.00011534,2]
[355543227,1741252232662,-1072.43737923,0.00011562,2]
[355543228,1741252232671,-1100.98911281,0.00011562,2]
[355543229,1741252232679,-433.48384815,0.00011662,2]
[355543230,1741252232687,-165.6,0.00011696,2]
[355543231,1741252232696,-1535.70227143,0.00011697,2]
[355543232,1741252232706,-173.18363723,0.00011697,2]
[355543233,1741252232716,-150.0,0.00011697,2]
[355543234,1741252232725,-622.28883848,0.00011697,2]
[355543235,1741252232734,-158.12184812,0.00011697,2]
[355543236,1741252232744,-1000.0,0.00011698,2]
[355543237,1741252232753,-13257.0067,0.00011698,2]
[355543238,1741252232763,-8632.237,0.00011698,2]
[355543239,1741252232772,-400.49,0.000117,2]
[355543240,1741252232781,-150.0,0.00011764,2]
[355543241,1741252232791,-501.57234375,0.00011773,2]
[355543243,1741252232801,-459.1376197,0.00011773,2]
[355543245,1741252232810,-160.29252881,0.00011773,2]
[355543247,1741252232820,-14087.75129368,0.00011787,2]
[355543249,1741252232831,-500.0,0.00011795,2]
[355543251,1741252232840,-982.28,0.00011795,2]
[355543253,1741252232849,-862.53,0.00011795,2]
[355543255,1741252232859,-500.0,0.00011795,2]
[355543257,1741252232869,-500.0,0.00011795,2]
[355543259,1741252232878,-500.0,0.00011795,2]
[355543261,1741252232891,-217.97537401,0.00011796,2]
[355543263,1741252232901,-818.09,0.00011796,2]
[355543265,1741252232910,-597.2,0.00011796,2]
[355543267,1741252232919,-843.74,0.00011796,2]
[355543269,1741252232929,-500.0,0.00011796,2]